bitfinex/quotes_BTCUSD_20260310
["timestamp","ask_amount","ask_price","bid_price","bid_amount"]
[1773180726795,0.07777437,69508.0,69482.0,0.07697519]
[1773180727005,0.00584001,69508.0,69482.0,0.07697519]
[1773180727376,0.07777426,69508.0,69482.0,0.07697519]
[1773180727587,0.00584001,69508.0,69482.0,0.07697519]
[1773180727786,0.00584001,69508.0,69483.0,0.00148]
[1773180727994,0.0777743,69508.0,69484.0,0.07697519]
[1773180728201,0.00584001,69508.0,69486.0,0.07697519]
[1773180728882,0.07777452,69508.0,69486.0,0.07697519]
[1773180729089,0.00584001,69508.0,69486.0,0.07697519]
[1773180729499,0.07777435,69508.0,69486.0,0.07697519]
[1773180729709,0.00584001,69508.0,69486.0,0.07697519]
[1773180730153,0.00584001,69508.0,69487.0,0.0719559]
[1773180730352,0.00584001,69508.0,69488.0,0.07697519]
[1773180730533,0.00584001,69508.0,69490.0,0.07697519]
[1773180732323,0.00022001,69515.0,69492.0,0.07697519]
[1773180733358,0.19363411,69522.0,69492.0,0.07697519]
[1773180733567,0.27213529,69522.0,69492.0,0.07697519]
[1773180733976,0.07850118,69521.0,69492.0,0.07797519]
[1773180734316,0.00022001,69515.0,69496.0,0.07697519]
[1773180734784,0.00022001,69515.0,69498.0,0.07697519]
[1773180735548,0.00022001,69515.0,69498.0,0.07708753]
[1773180736299,0.00022001,69515.0,69501.0,0.07194141]
[1773180736509,0.00022001,69515.0,69493.0,0.14644]
[1773180736510,0.07214772,69515.0,69491.0,0.07195075]
[1773180736709,0.07850118,69527.0,69500.0,0.00023]
[1773180736880,0.07850118,69527.0,69501.0,0.07697519]
[1773180737094,0.07850118,69527.0,69502.0,0.00148]
[1773180737284,0.07850118,69527.0,69503.0,0.07697519]
[1773180737686,0.00022001,69529.0,69503.0,0.07697519]
[1773180738269,0.00022001,69529.0,69504.0,0.0719383]
[1773180738477,0.07850118,69527.0,69505.0,0.07697519]
[1773180738988,0.07850118,69527.0,69506.0,0.00148]
[1773180739192,0.07850118,69527.0,69507.0,0.00148]
[1773180739567,0.07850118,69527.0,69507.0,0.08931213]
[1773180740592,0.07850118,69527.0,69508.0,0.07193416]
[1773180740842,0.07850118,69527.0,69508.0,0.07178396]
[1773180741571,0.07850118,69527.0,69508.0,0.15961609]
[1773180741785,0.00022001,69527.0,69509.0,0.08783213]
[1773180742480,0.00022001,69527.0,69510.0,0.07193209]
[1773180742713,0.00022001,69527.0,69511.0,0.08783213]
[1773180743483,0.00022001,69527.0,69511.0,0.00148]
[1773180743484,0.08869477,69526.0,69511.0,0.00148]
[1773180743664,0.08869477,69526.0,69512.0,0.00148]
[1773180743846,0.08869477,69526.0,69513.0,0.00148]
[1773180744049,0.08869477,69526.0,69501.0,0.07194115]
[1773180744304,0.08869477,69526.0,69503.0,0.08783213]
[1773180744714,0.08869477,69524.0,69504.0,0.0719383]
[1773180746742,0.07191864,69523.0,69504.0,0.0719383]
[1773180746976,0.08869477,69522.0,69505.0,0.08783213]
[1773180747135,0.00022001,69527.0,69505.0,0.08783213]
[1773180747341,0.08869477,69526.0,69505.0,0.08783213]
[1773180748429,0.00022001,69527.0,69505.0,0.08783213]
[1773180748790,0.00022001,69527.0,69506.0,0.07193623]
[1773180748979,0.00022001,69527.0,69507.0,0.08783213]
[1773180749626,0.00022001,69527.0,69509.0,0.08783213]
[1773180750875,0.00022001,69527.0,69511.0,0.08783213]
[1773180751539,0.00022001,69527.0,69513.0,0.08783213]
[1773180752444,1e-08,69534.0,69513.0,0.08783213]
[1773180752685,1e-08,69534.0,69512.0,0.00148]
[1773180752686,0.08869477,69551.0,69521.0,0.08783213]
[1773180752863,0.08869477,69551.0,69523.0,0.08783213]
[1773180753065,0.07188762,69553.0,69523.0,0.08783213]
[1773180753266,0.08869477,69549.0,69524.0,0.00148]
[1773180753473,0.08930567,69549.0,69525.0,0.08783213]
[1773180754328,0.0006109,69549.0,69525.0,0.08783213]
[1773180754535,0.0006109,69549.0,69525.0,0.08794451]
[1773180755043,0.0006109,69549.0,69527.0,0.08783213]
[1773180756351,0.0006109,69549.0,69527.0,0.08883213]
[1773180756556,0.0006109,69549.0,69527.0,0.08783213]
[1773180757116,0.0006109,69549.0,69529.0,0.08783213]
[1773180757289,0.0006109,69549.0,69531.0,0.08783213]
[1773180757494,1e-08,69550.0,69531.0,0.08783213]
[1773180758996,1e-08,69550.0,69531.0,0.08883213]
[1773180759212,0.0005511,69563.0,69542.0,0.08783213]
[1773180759425,0.0005511,69563.0,69544.0,0.08783213]
[1773180761338,0.0005511,69563.0,69546.0,0.08783213]
[1773180762658,0.0005511,69563.0,69546.0,0.08894451]
[1773180762865,0.07187832,69562.0,69546.0,0.00111238]
[1773180763074,0.08869477,69561.0,69546.0,0.00011238]
[1773180763247,0.08869477,69561.0,69547.0,0.00148]
[1773180763520,0.0005511,69563.0,69549.0,0.08783213]
[1773180763871,0.00077111,69563.0,69549.0,0.08783213]
[1773180764073,0.00059081,69563.0,69549.0,0.08783213]
[1773180765170,0.0004105,69563.0,69549.0,0.08783213]
[1773180765510,0.0004105,69563.0,69551.0,0.08783213]
[1773180768132,0.0004105,69563.0,69552.0,0.07188865]
[1773180768509,0.0004105,69563.0,69553.0,0.00148]
[1773180769668,0.0868414,69562.0,69553.0,0.001]
[1773180769982,0.0868414,69562.0,69554.0,0.00148]
[1773180770187,0.0868414,69562.0,69549.0,0.07188865]
[1773180770188,0.0868414,69562.0,69546.0,0.07200724]
[1773180770322,0.0868414,69562.0,69553.0,0.001]
[1773180770529,0.0868414,69562.0,69554.0,0.00148]
[1773180772392,0.08706141,69562.0,69555.0,0.07188555]
[1773180772595,0.08706141,69562.0,69556.0,0.00148]
[1773180774636,0.08706141,69562.0,69549.0,0.07189151]
[1773180774637,0.08706141,69562.0,69557.0,0.00148]
[1773180776422,0.08706141,69562.0,69558.0,0.07188245]
[1773180778127,0.08706141,69562.0,69559.0,0.00148]
[1773180778331,0.08706141,69562.0,69559.0,0.00132977]
[1773180779796,0.00022001,69570.0,69559.0,0.07321058]
[1773180779999,0.00022001,69570.0,69560.0,0.08364187]
[1773180780161,0.00022001,69570.0,69560.0,0.08349165]
[1773180780578,0.00022001,69570.0,69559.0,0.07321058]
[1773180780784,0.08706141,69570.0,69559.0,0.07321058]
[1773180781187,0.00022001,69563.0,69559.0,0.07321058]
[1773180782524,0.00022001,69563.0,69559.0,0.07188081]
[1773180782735,0.00022001,69563.0,69560.0,0.00148]
[1773180784991,0.00022001,69563.0,69561.0,0.07187935]
[1773180786349,0.00022001,69570.0,69561.0,0.07187935]
[1773180786547,0.00022001,69570.0,69561.0,0.15552122]
[1773180786772,0.00045001,69575.0,69562.0,0.08364187]
[1773180786955,0.00022001,69577.0,69562.0,0.08364187]
[1773180786956,0.00022001,69577.0,69564.0,0.08364187]
[1773180787120,0.08706141,69576.0,69565.0,0.00148]
[1773180788560,0.00022001,69576.0,69565.0,0.00148]
[1773180789081,0.00022001,69576.0,69566.0,0.07187419]
[1773180789650,0.00022001,69577.0,69567.0,0.08364187]
[1773180789835,0.0015,69581.0,69567.0,0.08364187]
[1773180790241,0.14169628,69584.0,69567.0,0.08364187]
[1773180790534,0.14169628,69589.0,69567.0,0.08364187]
[1773180790790,0.00037445,69589.0,69572.0,0.08364187]
[1773180790995,0.0005511,69594.0,69574.0,0.08364187]
[1773180791170,0.0005511,69594.0,69574.0,0.08401632]
[1773180791693,0.07239639,69594.0,69574.0,0.08401632]
[1773180791993,0.0005511,69594.0,69574.0,0.08401632]
[1773180792950,0.07183614,69603.0,69576.0,0.08364187]
[1773180793147,0.11518804,69607.0,69581.0,0.08364187]
[1773180793352,0.11518859,69607.0,69583.0,0.08364187]
[1773180793591,0.11518859,69607.0,69585.0,0.08364187]
[1773180793592,0.04335579,69607.0,69585.0,0.08364187]
[1773180793804,0.0718329,69606.0,69587.0,0.08364187]
[1773180794003,0.07183511,69604.0,69589.0,0.08364187]
[1773180794205,0.07183511,69604.0,69579.0,0.14604]
[1773180794206,0.07183319,69606.0,69591.0,0.08364187]
[1773180794440,0.07183424,69605.0,69592.0,0.00148]
[1773180794657,0.0718354,69604.0,69593.0,0.00148]
[1773180794851,0.0718354,69604.0,69594.0,0.00148]
[1773180795018,0.07183424,69605.0,69594.0,0.00148]
[1773180795220,0.07183424,69605.0,69595.0,0.07184424]
[1773180795940,0.07183424,69605.0,69595.0,0.15548611]
[1773180796145,0.36061973,69613.0,69596.0,0.08364187]
[1773180796479,0.4036503,69613.0,69596.0,0.08364187]
[1773180796807,0.04291826,69612.0,69596.0,0.08364187]
[1773180797289,0.07193807,69613.0,69598.0,0.08364187]
[1773180797925,0.00011231,69613.0,69598.0,0.08364187]
[1773180799124,0.00011231,69613.0,69600.0,0.08364187]
[1773180799753,0.00011231,69613.0,69600.0,0.08349165]
[1773180802197,0.04201707,69612.0,69598.0,0.07184011]
[1773180802401,0.16538518,69610.0,69590.0,0.00048]
[1773180802603,0.04201707,69609.0,69591.0,0.00148]
[1773180802986,0.04201707,69609.0,69590.0,0.07232929]
[1773180803172,0.04201707,69609.0,69592.0,0.00148]
[1773180805035,0.07193797,69613.0,69594.0,0.08125307]
[1773180805036,0.07182861,69612.0,69594.0,0.08125307]
[1773180805235,0.00011231,69613.0,69594.0,0.08125307]
[1773180805236,0.00033232,69613.0,69594.0,0.08125307]
[1773180805760,0.07181947,69619.0,69594.0,0.08125307]
[1773180805907,0.001,69609.0,69594.0,0.08136538]
[1773180806322,0.07181947,69619.0,69594.0,0.08136538]
[1773180806917,0.00584001,69620.0,69596.0,0.08125307]
[1773180807120,0.00584001,69620.0,69598.0,0.08125307]
[1773180807326,0.07765871,69620.0,69598.0,0.08125307]
[1773180808802,0.00584001,69620.0,69598.0,0.08125307]
[1773180809235,0.00584001,69620.0,69601.0,0.27196658]
[1773180809472,0.00584001,69620.0,69602.0,0.08273307]
[1773180811298,0.00584001,69620.0,69604.0,0.08125307]
[1773180813272,0.00584001,69620.0,69605.0,0.07183391]
[1773180813587,0.00584001,69620.0,69606.0,0.08125307]
[1773180815674,0.00584001,69620.0,69608.0,0.08125307]
[1773180815877,0.00584001,69620.0,69610.0,0.08125307]
[1773180816297,0.00584001,69620.0,69610.0,0.07360928]
[1773180817298,0.00023,69625.0,69610.0,0.07360928]
[1773180817697,0.00023,69625.0,69612.0,0.08125307]
[1773180817698,1e-08,69625.0,69612.0,0.08125307]
[1773180818101,1e-08,69625.0,69613.0,0.00148]
[1773180818301,1e-08,69625.0,69613.0,0.08273307]
[1773180820086,1e-08,69625.0,69614.0,0.07182463]
[1773180820249,0.00022001,69620.0,69614.0,0.1530777]
[1773180820446,1e-08,69625.0,69614.0,0.1530777]
[1773180820650,1e-08,69625.0,69615.0,0.08125307]
[1773180821441,1e-08,69625.0,69616.0,0.00148]
[1773180821664,1e-08,69625.0,69617.0,0.08125307]
[1773180822068,1e-08,69625.0,69618.0,0.0718205]
[1773180822271,1e-08,69625.0,69619.0,0.08125307]
[1773180824376,1e-08,69625.0,69621.0,0.08125307]
[1773180824607,1e-08,69625.0,69622.0,0.08269307]
[1773180826598,0.07073343,69635.0,69623.0,0.07181534]
[1773180826797,0.00012,71508.0,69623.0,0.15306841]
[1773180826798,0.04797419,69637.0,69623.0,0.15306841]
[1773180827052,0.08292067,69638.0,69624.0,0.08125307]
[1773180828616,0.01111992,69638.0,69625.0,0.07181328]
[1773180828982,0.07179079,69647.0,69626.0,0.08000618]
[1773180829101,0.00022001,69638.0,69626.0,0.08000618]
[1773180830823,0.00022001,69638.0,69628.0,0.08157815]
[1773180831029,0.00022001,69638.0,69629.0,0.08301815]
[1773180833130,0.00022001,69638.0,69630.0,0.07180812]
[1773180833725,0.04603903,69636.0,69622.0,0.07191595]
[1773180833930,0.04615142,69636.0,69623.0,0.00144]
[1773180834135,0.04615142,69636.0,69629.0,0.001]
[1773180834351,0.04615142,69636.0,69630.0,0.00144]
[1773180834555,0.04615142,69636.0,69631.0,0.00144]
[1773180834761,0.04615142,69636.0,69631.0,0.00104053]
[1773180835184,0.0461702,69634.0,69622.0,0.0001]
[1773180835591,0.0461702,69634.0,69623.0,0.00144]
[1773180837655,0.0461702,69634.0,69624.0,0.07181431]
[1773180838605,0.07180297,69635.0,69624.0,0.07181431]
[1773180838763,0.00022001,69638.0,69624.0,0.07181431]
[1773180838968,0.07201999,69638.0,69625.0,0.08157815]
[1773180839379,0.07201999,69638.0,69624.0,0.0719267]
[1773180839601,0.07201999,69638.0,69624.0,0.15350485]
[1773180839980,0.07201999,69638.0,69624.0,0.0719267]
[1773180840181,0.07179987,69640.0,69624.0,0.0719267]
[1773180840182,0.07179782,69640.0,69625.0,0.08157815]
[1773180841792,0.07179881,69641.0,69625.0,0.08157815]
[1773180842192,0.07179607,69642.0,69626.0,0.07181225]
[1773180842431,0.07179607,69642.0,69627.0,0.08157815]
[1773180843496,0.07179678,69643.0,69627.0,0.08157815]
[1773180843839,0.00022001,69645.0,69631.0,0.08157815]
[1773180844054,0.00022001,69645.0,69633.0,0.08157815]
[1773180844282,0.00022001,69645.0,69635.0,0.08157815]
[1773180844451,0.00022001,69645.0,69636.0,0.00144]
[1773180845255,0.00022001,69642.0,69636.0,0.00144]
[1773180845455,0.00022001,69642.0,69641.0,0.00048]
[1773180845882,0.00022001,69642.0,69634.0,0.071804]
[1773180846221,0.00022001,69642.0,69635.0,0.00144]
[1773180846346,0.00022001,69642.0,69636.0,0.07180194]
[1773180846550,0.00022001,69642.0,69636.0,0.07280194]
[1773180846761,0.00022001,69642.0,69636.0,0.07180194]
[1773180847927,0.11641968,69642.0,69626.0,0.07181129]
[1773180848129,0.04440345,69641.0,69627.0,0.00144]
[1773180848358,0.11620102,69641.0,69628.0,0.07181019]
[1773180849405,0.05501566,69640.0,69628.0,0.07181019]
[1773180849740,0.11783281,69641.0,69629.0,0.00144]
[1773180849989,0.11783281,69641.0,69627.0,0.07181019]
[1773180850172,0.04586129,69639.0,69618.0,0.07182045]
[1773180850305,0.04586129,69639.0,69617.0,0.0533543]
[1773180850306,0.04586129,69629.0,69617.0,0.0533543]
[1773180850518,0.04586129,69629.0,69618.0,0.00144]
[1773180850714,0.04586129,69629.0,69617.0,0.0533543]
[1773180850917,0.04586129,69629.0,69618.0,0.00144]
[1773180851520,0.04586129,69629.0,69619.0,0.00144]
[1773180851722,0.07179987,69638.0,69617.0,0.0533543]
[1773180851955,0.07179987,69638.0,69618.0,0.00144]
[1773180852388,0.07179987,69638.0,69620.0,0.07181844]
[1773180852970,0.07279987,69638.0,69621.0,0.08818874]
[1773180853646,0.07379987,69638.0,69621.0,0.08818874]
[1773180853858,0.07279987,69638.0,69621.0,0.08818874]
[1773180854068,0.07279987,69638.0,69623.0,0.08810191]
[1773180854270,0.07179987,69638.0,69623.0,0.08810191]
[1773180854482,0.00011239,69639.0,69625.0,0.08810191]
[1773180854682,0.00011239,69639.0,69627.0,0.08810191]
[1773180855196,0.001,69638.0,69627.0,0.08810191]
[1773180855398,0.0011658,69638.0,69627.0,0.08810191]
[1773180855601,0.0001658,69638.0,69627.0,0.08810191]
[1773180857403,0.0001658,69638.0,69629.0,0.08816312]
[1773180858356,0.0001658,69638.0,69630.0,0.00144]
[1773180859860,0.0001658,69638.0,69630.0,0.07324778]
[1773180860058,0.0001658,69638.0,69630.0,0.16113228]
[1773180860426,0.0001658,69638.0,69631.0,0.00144]
[1773180860741,0.07179545,69643.0,69632.0,0.0878845]
[1773180860937,0.07179282,69645.0,69632.0,0.08799689]
[1773180861932,0.21391281,69647.0,69633.0,0.07180503]
[1773180862128,0.0717906,69647.0,69634.0,0.08755737]
[1773180866805,0.0717906,69647.0,69635.0,0.07180297]
[1773180867388,0.05501566,69645.0,69635.0,0.00144]
[1773180867791,0.05465522,69645.0,69635.0,0.00144]
[1773180867996,0.05465522,69645.0,69627.0,0.07201076]
[1773180868207,0.05501566,69640.0,69628.0,0.00144]
[1773180868966,0.07179884,69639.0,69629.0,0.07180915]
[1773180869194,0.07179884,69639.0,69630.0,0.00144]
[1773180870347,0.07179876,69640.0,69630.0,0.00144]
[1773180870348,0.00011241,69645.0,69630.0,0.07324792]
[1773180871329,0.00011241,69645.0,69631.0,0.08757324]
[1773180873136,0.07201147,69647.0,69632.0,0.07180606]
[1773180873396,0.07201147,69647.0,69633.0,0.00144]
[1773180874444,0.07201147,69647.0,69634.0,0.00144]
[1773180875386,0.07201147,69647.0,69635.0,0.00144]
[1773180876401,0.00022001,69645.0,69632.0,0.00011241]
[1773180876622,0.00022001,69645.0,69633.0,0.00144]
[1773180876837,0.05501566,69643.0,69627.0,0.0002]
[1773180877038,0.05501566,69637.0,69627.0,0.00144]
[1773180877210,0.14206168,69642.0,69627.0,0.00144]
[1773180877405,0.07179678,69641.0,69627.0,0.00144]
[1773180877848,0.07179678,69641.0,69625.0,0.00144]
[1773180879020,0.00144,69640.0,69625.0,0.00144]
[1773180879432,0.07179884,69639.0,69625.0,0.00144]
[1773180880713,0.06379194,69639.0,69625.0,0.00144]
[1773180883552,0.06379194,69639.0,69623.0,0.07181532]
[1773180883808,0.06379194,69639.0,69624.0,0.00144]
[1773180884014,0.06379194,69639.0,69625.0,0.0002]
[1773180884404,0.06401195,69639.0,69625.0,0.0002]
[1773180887431,0.06401195,69639.0,69626.0,0.08757444]
[1773180888487,0.07179884,69639.0,69626.0,0.08757444]
[1773180888924,0.00011239,69643.0,69627.0,0.08757444]
[1773180890892,0.00011239,69643.0,69629.0,0.08757432]
[1773180891273,0.00011239,69643.0,69631.0,0.08757432]
[1773180892984,0.00011239,69643.0,69630.0,0.0732479]
[1773180893186,0.08033157,69639.0,69620.0,0.0002]
[1773180893521,0.08033157,69631.0,69623.0,0.00144]
[1773180894903,0.07180812,69630.0,69623.0,0.00144]
[1773180895284,0.07180812,69630.0,69620.0,0.0002]
[1773180895513,0.07180812,69630.0,69622.0,0.00164]
[1773180896902,0.07280812,69630.0,69622.0,0.00164]
[1773180897309,0.07180812,69630.0,69622.0,0.00164]
[1773180900504,0.07879467,69629.0,69602.0,0.0005]
[1773180900706,0.07879467,69611.0,69592.0,0.00562]
[1773180900891,0.07818861,69604.0,69592.0,0.00706]
[1773180901056,0.07818861,69604.0,69592.0,0.0789073]
[1773180901255,0.07183185,69607.0,69594.0,0.08014797]
[1773180901832,0.07183185,69607.0,69594.0,0.00011231]
[1773180902051,0.07765685,69606.0,69595.0,0.00144]
[1773180902741,0.13254353,69605.0,69595.0,0.00144]
[1773180902947,0.07832938,69604.0,69596.0,0.00144]
[1773180903144,0.07183598,69603.0,69596.0,0.00144]
[1773180903988,0.07183598,69603.0,69592.0,0.00417231]
[1773180903989,0.0769184,69602.0,69592.0,0.00417231]
[1773180904197,0.07703071,69602.0,69592.0,0.00417231]
[1773180904411,0.07703071,69602.0,69593.0,0.00144]
[1773180904929,0.07703071,69602.0,69594.0,0.00144]
[1773180905359,0.07703071,69602.0,69592.0,0.00417231]
[1773180905360,0.07183804,69601.0,69592.0,0.00417231]
[1773180905606,0.07183804,69601.0,69594.0,0.00144]
[1773180905976,0.07183804,69601.0,69592.0,0.00417231]
[1773180906124,0.07183804,69601.0,69594.0,0.00144]
[1773180906531,0.07183804,69601.0,69595.0,0.00144]
[1773180906772,0.07577129,69600.0,69595.0,0.00144]
[1773180906973,0.07577129,69600.0,69592.0,0.00417231]
[1773180907173,0.07577129,69600.0,69587.0,0.00144]
[1773180907375,0.05503383,69597.0,69587.0,0.00144]
[1773180907577,0.07519551,69596.0,69587.0,0.00144]
[1773180907791,0.07519551,69596.0,69584.0,1e-08]
[1773180908189,0.07462481,69594.0,69584.0,1e-08]
[1773180909467,0.07409438,69592.0,69584.0,1e-08]
[1773180910888,0.07609438,69592.0,69584.0,1e-08]
[1773180911292,0.07184837,69591.0,69584.0,1e-08]
[1773180911518,0.07297769,69590.0,69584.0,1e-08]
[1773180912391,0.07297769,69590.0,69565.0,0.07187436]
[1773180912584,0.05503383,69580.0,69567.0,0.08014797]
[1773180912735,0.05503383,69580.0,69578.0,0.0002]
[1773180912934,0.07188046,69587.0,69578.0,0.0002]
[1773180913159,0.07332046,69587.0,69573.0,0.00144]
[1773180913334,0.07185353,69586.0,69573.0,0.00144]
[1773180913551,0.14373399,69586.0,69573.0,0.00144]
[1773180913749,0.14373399,69586.0,69573.0,0.00181445]
[1773180913951,0.14373399,69586.0,69573.0,0.00037445]
[1773180914200,0.14373399,69586.0,69573.0,0.00181445]
[1773180914752,0.14473399,69586.0,69573.0,0.00181445]
[1773180914950,0.05503383,69583.0,69573.0,0.00181445]
[1773180915506,0.07185707,69583.0,69574.0,0.08014797]
[1773180915685,0.07185707,69583.0,69574.0,0.08158797]
[1773180916092,0.07185707,69583.0,69574.0,0.08169957]
[1773180917604,0.07185663,69585.0,69574.0,0.0001116]
[1773180917804,0.07185663,69585.0,69574.0,0.0015516]
[1773180918836,0.07185663,69585.0,69575.0,0.08014797]
[1773180918999,0.06956627,69593.0,69575.0,0.08014797]
[1773180919000,0.00144,69598.0,69575.0,0.08025957]
[1773180919625,0.07184217,69597.0,69577.0,0.07363511]
[1773180920045,0.07184217,69597.0,69577.0,0.07374671]
[1773180921564,0.07206934,69600.0,69578.0,0.07186179]
[1773180921786,0.07206934,69600.0,69579.0,0.07363511]
[1773180922204,0.07206934,69600.0,69579.0,0.07374671]
[1773180922411,0.06717985,69599.0,69579.0,0.07374671]
[1773180922584,0.06717985,69599.0,69581.0,0.07363511]
[1773180923104,0.06717985,69599.0,69582.0,0.00144]
[1773180923410,0.06717985,69599.0,69583.0,0.07363511]
[1773180923587,0.06717985,69599.0,69584.0,0.00144]
[1773180923910,0.07184114,69598.0,69584.0,0.07507511]
[1773180924407,0.07184114,69598.0,69580.0,0.07329934]
[1773180924408,0.07780838,69597.0,69580.0,0.07329934]
[1773180924990,0.07780838,69597.0,69581.0,0.07507511]
[1773180926307,0.0718432,69596.0,69582.0,0.07185766]
[1773180926477,0.0718432,69596.0,69582.0,0.14549277]
[1773180926675,0.0718432,69596.0,69583.0,0.07363511]
[1773180926901,0.0718432,69596.0,69584.0,0.0001]
[1773180927279,0.0718432,69596.0,69584.0,0.07373511]
[1773180927491,0.0718432,69596.0,69584.0,0.0001]
[1773180927660,0.07780838,69595.0,69584.0,0.0001]
[1773180927864,0.07780838,69595.0,69567.0,0.07207225]
[1773180928066,0.07780838,69589.0,69568.0,0.07187124]
[1773180928265,0.07185353,69586.0,69574.0,0.00164]
[1773180928510,0.07780838,69585.0,69574.0,0.0002]
[1773180928866,0.07780838,69585.0,69584.0,0.0001]
[1773180929986,0.07780838,69585.0,69574.0,0.0002]
[1773180930198,0.07880838,69585.0,69574.0,0.0002]
[1773180930409,0.07780838,69583.0,69574.0,0.0002]
[1773180931208,0.07770838,69583.0,69574.0,0.0002]
[1773180932615,0.07185766,69582.0,69574.0,0.0002]
[1773180939327,0.07185766,69582.0,69574.0,0.0082069]
[1773180940544,0.07185766,69582.0,69572.0,0.0002]
[1773180940545,0.07780838,69581.0,69572.0,0.0002]
[1773180940749,0.07818283,69581.0,69572.0,0.0002]
[1773180940909,0.07818283,69581.0,69574.0,0.0002]
[1773180941742,0.07185972,69580.0,69574.0,0.0002]
[1773180942834,0.07285972,69580.0,69574.0,0.0002]
[1773180943062,0.04845406,69582.0,69575.0,0.07363511]
[1773180943244,0.07185869,69581.0,69575.0,0.07363511]
[1773180943617,0.04845406,69582.0,69575.0,0.07363511]
[1773180943618,0.00144,69582.0,69575.0,0.07363511]
[1773180944525,0.00144,69582.0,69574.0,0.0003]
[1773180945193,0.00144,69582.0,69574.0,0.0004]
[1773180946120,0.07185869,69581.0,69574.0,0.07403511]
[1773180946292,0.07185869,69581.0,69574.0,0.07413511]
[1773180948178,0.07185348,69587.0,69575.0,0.07195801]
[1773180948383,0.05174634,69587.0,69575.0,0.07195801]
[1773180948583,0.05174634,69587.0,69576.0,0.00144]
[1773180948784,0.05174634,69587.0,69577.0,0.07195801]
[1773180949201,0.05174634,69587.0,69574.0,0.07336555]
[1773180949429,0.05174634,69587.0,69575.0,0.00144]
[1773180949430,0.12275172,69587.0,69575.0,0.00144]
[1773180949804,0.12275172,69587.0,69576.0,0.00144]
[1773180951230,0.05174634,69587.0,69576.0,0.07330369]
[1773180951428,0.05174634,69587.0,69577.0,0.06808379]
[1773180952023,0.05174634,69587.0,69576.0,0.00144]
[1773180955084,0.05174634,69587.0,69576.0,0.00244]
[1773180955307,0.05174634,69587.0,69576.0,0.00144]
[1773180955755,0.05196635,69587.0,69576.0,0.00144]
[1773180958363,0.05196635,69587.0,69573.0,0.13995074]
[1773180958571,0.05196635,69587.0,69560.0,0.12699332]
[1773180958572,0.07100538,69585.0,69564.0,0.00706]
[1773180958773,0.07186386,69576.0,69566.0,0.00144]
[1773180959500,0.05511358,69573.0,69566.0,0.00144]
[1773180960818,0.07100538,69571.0,69550.0,1e-08]
[1773180961015,0.07100538,69559.0,69537.0,0.07227886]
[1773180961326,0.07100538,69550.0,69537.0,0.0003756]
[1773180961736,0.12617538,69550.0,69537.0,0.0003756]
[1773180961934,0.12617538,69550.0,69535.0,0.06613379]
[1773180962156,0.12617538,69550.0,69535.0,0.06624617]
[1773180962647,0.07100538,69549.0,69535.0,0.06624617]
[1773180963046,0.07189279,69548.0,69535.0,0.06624617]
[1773180964215,0.14289817,69548.0,69535.0,0.06624617]
[1773180964497,0.07100538,69547.0,69535.0,0.00011238]
[1773180964997,0.07100538,69545.0,69535.0,0.00011238]
[1773180965245,0.07100538,69543.0,69539.0,0.00048]
[1773180965546,0.07100538,69543.0,69529.0,0.07335242]
[1773180965746,0.07111761,69543.0,69529.0,0.07335242]
[1773180966181,0.07111761,69543.0,69529.0,0.07191242]
[1773180966450,0.07111761,69543.0,69529.0,0.07335242]
[1773180967149,0.07189899,69542.0,69529.0,0.07335242]
[1773180967904,0.07201054,69543.0,69530.0,0.06808379]
[1773180969061,0.07201054,69543.0,69530.0,0.13999463]
[1773180969429,0.07201054,69543.0,69529.0,0.0001]
[1773180969659,0.07100538,69542.0,69529.0,0.0001]
[1773180969856,0.07100538,69539.0,69529.0,0.0001]
[1773180970021,0.07100538,69539.0,69525.0,0.00023]
[1773180970226,0.07100538,69537.0,69525.0,0.00023]
[1773180970446,0.07100538,69537.0,69529.0,0.0002]
[1773180971029,0.07100538,69537.0,69525.0,0.00023]
[1773180971381,0.0719052,69536.0,69525.0,0.00023]
[1773180971801,0.07100538,69535.0,69525.0,0.00023]
[1773180972606,0.07100538,69529.0,69510.0,0.25497061]
[1773180972816,0.07244538,69529.0,69513.0,0.00144]
[1773180973028,0.07244538,69529.0,69512.0,0.0015]
[1773180973226,0.07191347,69528.0,69513.0,0.00144]
[1773180973428,0.07100538,69527.0,69513.0,0.00144]
[1773180973647,0.07100538,69527.0,69512.0,0.07342989]
[1773180973830,0.07100538,69527.0,69513.0,0.00144]
[1773180974278,0.07191347,69528.0,69517.0,0.06845939]
[1773180974482,0.07191347,69528.0,69525.0,0.0001]
[1773180976500,0.14291885,69528.0,69525.0,0.0001]
[1773180976683,0.07191347,69528.0,69514.0,0.06808379]
[1773180976888,0.16551344,69524.0,69513.0,0.00144]
[1773180977250,0.07191864,69523.0,69513.0,0.07336889]
[1773180977922,0.07191864,69523.0,69513.0,0.07192889]
[1773180978113,0.07191864,69523.0,69513.0,0.14001268]
[1773180978461,0.07191864,69523.0,69514.0,0.06808379]
[1773180978900,0.16551344,69524.0,69514.0,0.06808379]
[1773180979078,0.16551344,69524.0,69513.0,0.07192891]
[1773180979079,0.07191554,69526.0,69518.0,0.0002]
[1773180979262,0.07191535,69527.0,69518.0,0.0002]
[1773180980629,0.07191535,69527.0,69519.0,0.064887]
[1773180981748,0.07191535,69527.0,69518.0,0.0002]
[1773180983745,0.07191535,69527.0,69519.0,0.0001]
[1773180985719,0.03234816,69525.0,69501.0,0.17151039]
[1773180985873,0.06878128,69510.0,69491.0,0.07195169]
[1773180986072,0.05522278,69498.0,69490.0,0.13683964]
[1773180986297,0.05522278,69498.0,69491.0,0.064887]
[1773180986456,0.05522278,69501.0,69491.0,0.064887]
[1773180987103,0.05533491,69501.0,69491.0,0.064887]
[1773180987504,0.55233993,69501.0,69491.0,0.064887]
[1773180987735,0.00011213,69501.0,69491.0,0.064887]
[1773180988401,0.00011213,69501.0,69492.0,0.00144]
[1773180988573,0.00011213,69501.0,69492.0,0.066327]
[1773180990963,0.00144,69507.0,69493.0,0.064887]
[1773180991139,0.07193286,69510.0,69493.0,0.06499913]
[1773180991344,0.17679475,69527.0,69493.0,0.06499913]
[1773180991604,0.07192374,69519.0,69493.0,0.06499913]
[1773180992555,0.00022001,69524.0,69495.0,0.064887]
[1773180993209,0.00022001,69524.0,69496.0,0.00144]
[1773180993384,0.00022001,69524.0,69497.0,0.064887]
[1773180993952,0.07213773,69524.0,69497.0,0.064887]
[1773180994157,0.00072106,69523.0,69497.0,0.064887]
[1773180994774,0.00072106,69523.0,69499.0,0.064887]
[1773180996073,0.00023,69525.0,69499.0,0.064887]
[1773180996274,0.05201901,69528.0,69499.0,0.064887]
[1773180996479,0.05201901,69528.0,69501.0,0.064887]
[1773180996686,0.07191223,69530.0,69504.0,0.0719383]
[1773180996889,0.07191223,69530.0,69505.0,0.064887]
[1773180997732,0.00022001,69531.0,69505.0,0.064887]
[1773180998708,0.00022001,69531.0,69506.0,0.07193623]